fUST/lending_fUST_20260511
["ID","MTS","AMOUNT","RATE_DAILY","PERIOD"]
[422024027,1778482247000,-831.51979763,0.00011297,2]
[422024026,1778482247000,-801.85129955,0.00011242,2]
[422024037,1778482247000,-164.03605,0.00011505,2]
[422024120,1778482248000,-500.0,0.00011506,2]
[422024114,1778482248000,-500.0,0.00011506,2]
[422024123,1778482248000,-500.0,0.00011506,2]
[422024115,1778482248000,-375.42,0.00011506,2]
[422024118,1778482248000,-768.13,0.00011506,2]
[422024112,1778482248000,-500.0,0.00011506,2]
[422024102,1778482248000,-500.0,0.00011506,2]
[422024119,1778482248000,-500.0,0.00011506,2]
[422024117,1778482248000,-500.0,0.00011506,2]
[422024122,1778482248000,-860.02,0.00011506,2]
[422024105,1778482248000,-267.42,0.00011506,2]
[422024111,1778482248000,-500.0,0.00011506,2]
[422024106,1778482248000,-636.32,0.00011506,2]
[422024113,1778482248000,-929.93,0.00011506,2]
[422024116,1778482248000,-597.18,0.00011506,2]
[422024128,1778482248000,-500.0,0.00011506,2]
[422024121,1778482248000,-500.0,0.00011506,2]
[422024126,1778482248000,-500.0,0.00011506,2]
[422024136,1778482248000,-163.6373,0.0001178,2]
[422024137,1778482248000,-1686.4916,0.0001178,2]
[422024125,1778482248000,-352.82,0.00011506,2]
[422024134,1778482248000,-647.0,0.00011729,2]
[422024133,1778482248000,-151.0,0.00011618,2]
[422024131,1778482248000,-151.0,0.000116,2]
[422024130,1778482248000,-500.0,0.00011513,2]
[422024132,1778482248000,-151.0,0.000116,2]
[422024129,1778482248000,-566.98,0.00011506,2]
[422024127,1778482248000,-564.63,0.00011506,2]
[422024135,1778482248000,-754447.27419637,0.0001176,2]
[422024124,1778482248000,-484.04277376,0.00011506,2]
[422024100,1778482248000,-789.77,0.00011506,2]
[422024082,1778482248000,-500.0,0.00011506,2]
[422024101,1778482248000,-500.0,0.00011506,2]
[422024138,1778482248000,-500.0,0.0001178,2]
[422024081,1778482248000,-500.0,0.00011506,2]
[422024083,1778482248000,-216.7,0.00011506,2]
[422024076,1778482248000,-500.0,0.00011506,2]
[422024075,1778482248000,-500.0,0.00011506,2]
[422024080,1778482248000,-354.64,0.00011506,2]
[422024077,1778482248000,-500.0,0.00011506,2]
[422024078,1778482248000,-500.0,0.00011506,2]
[422024079,1778482248000,-500.0,0.00011506,2]
[422024084,1778482248000,-500.0,0.00011506,2]
[422024086,1778482248000,-200.27,0.00011506,2]
[422024088,1778482248000,-500.0,0.00011506,2]
[422024087,1778482248000,-500.0,0.00011506,2]
[422024095,1778482248000,-537.53,0.00011506,2]
[422024085,1778482248000,-500.0,0.00011506,2]
[422024089,1778482248000,-885.05,0.00011506,2]
[422024096,1778482248000,-837.3,0.00011506,2]
[422024094,1778482248000,-3856.79,0.00011506,2]
[422024092,1778482248000,-587.07,0.00011506,2]
[422024091,1778482248000,-500.0,0.00011506,2]
[422024090,1778482248000,-500.0,0.00011506,2]
[422024093,1778482248000,-474.09,0.00011506,2]
[422024098,1778482248000,-500.0,0.00011506,2]
[422024108,1778482248000,-500.0,0.00011506,2]
[422024110,1778482248000,-500.0,0.00011506,2]
[422024097,1778482248000,-459.79,0.00011506,2]
[422024109,1778482248000,-692.74,0.00011506,2]
[422024099,1778482248000,-500.0,0.00011506,2]
[422024107,1778482248000,-500.0,0.00011506,2]
[422024103,1778482248000,-500.0,0.00011506,2]
[422024140,1778482248000,-500.0,0.0001178,2]
[422024104,1778482248000,-801.74,0.00011506,2]
[422024141,1778482248000,-500.0,0.0001178,2]
[422024169,1778482248000,-500.0,0.0001178,2]
[422024176,1778482248000,-587.07,0.0001178,2]
[422024170,1778482248000,-500.0,0.0001178,2]
[422024179,1778482248000,-837.3,0.0001178,2]
[422024178,1778482248000,-537.53,0.0001178,2]
[422024191,1778482248000,-500.0,0.0001178,2]
[422024182,1778482248000,-789.77,0.0001178,2]
[422024180,1778482248000,-500.0,0.0001178,2]
[422024189,1778482248000,-500.0,0.0001178,2]
[422024186,1778482248000,-801.74,0.0001178,2]
[422024181,1778482248000,-500.0,0.0001178,2]
[422024183,1778482248000,-500.0,0.0001178,2]
[422024187,1778482248000,-636.32,0.0001178,2]
[422024190,1778482248000,-692.74,0.0001178,2]
[422024184,1778482248000,-500.0,0.0001178,2]
[422024188,1778482248000,-500.0,0.0001178,2]
[422024185,1778482248000,-500.0,0.0001178,2]
[422024192,1778482248000,-500.0,0.0001178,2]
[422024194,1778482248000,-929.93,0.0001178,2]
[422024196,1778482248000,-500.0,0.0001178,2]
[422024199,1778482248000,-500.0,0.0001178,2]
[422024195,1778482248000,-500.0,0.0001178,2]
[422024197,1778482248000,-768.13,0.0001178,2]
[422024193,1778482248000,-616.42,0.0001178,2]
[422024200,1778482248000,-500.0,0.0001178,2]
[422024198,1778482248000,-626.12,0.0001178,2]
[422024201,1778482248000,-860.02,0.0001178,2]
[422024202,1778482248000,-500.0,0.0001178,2]
[422024204,1778482248000,-564.63,0.0001178,2]
[422024171,1778482248000,-500.0,0.0001178,2]
[422024175,1778482248000,-500.0,0.0001178,2]
[422024142,1778482248000,-500.0,0.0001178,2]
[422024168,1778482248000,-500.0,0.0001178,2]
[422024172,1778482248000,-500.0,0.0001178,2]
[422024147,1778482248000,-500.0,0.0001178,2]
[422024146,1778482248000,-500.0,0.0001178,2]
[422024148,1778482248000,-500.0,0.0001178,2]
[422024144,1778482248000,-500.0,0.0001178,2]
[422024145,1778482248000,-500.0,0.0001178,2]
[422024143,1778482248000,-500.0,0.0001178,2]
[422024149,1778482248000,-571.92,0.0001178,2]
[422024150,1778482248000,-500.0,0.0001178,2]
[422024154,1778482248000,-500.0,0.0001178,2]
[422024151,1778482248000,-500.0,0.0001178,2]
[422024153,1778482248000,-500.0,0.0001178,2]
[422024162,1778482248000,-500.0,0.0001178,2]
[422024158,1778482248000,-165.64,0.0001178,2]
[422024161,1778482248000,-500.0,0.0001178,2]
[422024139,1778482248000,-527.05956831,0.0001178,2]
[422024159,1778482248000,-500.0,0.0001178,2]
[422024173,1778482248000,-885.05,0.0001178,2]
[422024174,1778482248000,-443.79,0.0001178,2]
[422024203,1778482248000,-500.0,0.0001178,2]
[422024177,1778482248000,-3856.79,0.0001178,2]
[422024152,1778482248000,-500.0,0.0001178,2]
[422024167,1778482248000,-500.0,0.0001178,2]
[422024166,1778482248000,-500.0,0.0001178,2]
[422024160,1778482248000,-244.72,0.0001178,2]
[422024156,1778482248000,-500.0,0.0001178,2]
[422024157,1778482248000,-500.0,0.0001178,2]
[422024155,1778482248000,-440.22,0.0001178,2]
[422024163,1778482248000,-500.0,0.0001178,2]
[422024164,1778482248000,-500.0,0.0001178,2]
[422024165,1778482248000,-500.0,0.0001178,2]
[422024249,1778482249000,-537.53,0.00012054,2]
[422024245,1778482249000,-885.05,0.00012054,2]
[422024254,1778482249000,-500.0,0.00012054,2]
[422024256,1778482249000,-500.0,0.00012054,2]
[422024255,1778482249000,-500.0,0.00012054,2]
[422024237,1778482249000,-500.0,0.00012054,2]
[422024243,1778482249000,-500.0,0.00012054,2]
[422024236,1778482249000,-500.0,0.00012054,2]
[422024239,1778482249000,-500.0,0.00012054,2]
[422024238,1778482249000,-500.0,0.00012054,2]
[422024246,1778482249000,-500.0,0.00012054,2]
[422024244,1778482249000,-500.0,0.00012054,2]
[422024252,1778482249000,-500.0,0.00012054,2]
[422024260,1778482249000,-500.0,0.00012054,2]
[422024247,1778482249000,-587.07,0.00012054,2]
[422024250,1778482249000,-837.3,0.00012054,2]
[422024253,1778482249000,-789.77,0.00012054,2]
[422024248,1778482249000,-3856.79,0.00012054,2]
[422024257,1778482249000,-801.74,0.00012054,2]
[422024262,1778482249000,-500.0,0.00012054,2]
[422024259,1778482249000,-308.17,0.00012054,2]
[422024258,1778482249000,-636.32,0.00012054,2]
[422024261,1778482249000,-692.74,0.00012054,2]
[422024263,1778482249000,-500.0,0.00012054,2]
[422024266,1778482249000,-500.0,0.00012054,2]
[422024270,1778482249000,-500.0,0.00012054,2]
[422024242,1778482249000,-500.0,0.00012054,2]
[422024251,1778482249000,-500.0,0.00012054,2]
[422024234,1778482249000,-500.0,0.00012054,2]
[422024224,1778482249000,-441.96,0.00012054,2]
[422024232,1778482249000,-500.0,0.00012054,2]
[422024205,1778482249000,-500.0,0.00011787,2]
[422024206,1778482249000,-151.0,0.000118,2]
[422024209,1778482249000,-152.0,0.00011884,7]
[422024208,1778482249000,-152.0,0.00011884,7]
[422024214,1778482249000,-151.0,0.000119,2]
[422024213,1778482249000,-152.0,0.00011892,7]
[422024211,1778482249000,-152.0,0.00011888,7]
[422024212,1778482249000,-152.0,0.00011888,7]
[422024210,1778482249000,-152.0,0.00011884,7]
[422024216,1778482249000,-151.0,0.00012,2]
[422024226,1778482249000,-547.28,0.00012054,2]
[422024222,1778482249000,-500.0,0.00012054,2]
[422024220,1778482249000,-500.0,0.00012054,2]
[422024241,1778482249000,-500.0,0.00012054,2]
[422024215,1778482249000,-720.0,0.0001194,2]
[422024227,1778482249000,-597.48,0.00012054,2]
[422024218,1778482249000,-500.0,0.00012054,2]
[422024228,1778482249000,-500.0,0.00012054,2]
[422024219,1778482249000,-500.0,0.00012054,2]
[422024221,1778482249000,-1686.4916,0.00012054,2]
[422024223,1778482249000,-500.0,0.00012054,2]
[422024225,1778482249000,-500.0,0.00012054,2]
[422024231,1778482249000,-500.0,0.00012054,2]
[422024235,1778482249000,-500.0,0.00012054,2]
[422024240,1778482249000,-500.0,0.00012054,2]
[422024233,1778482249000,-160.2,0.00012054,2]
[422024229,1778482249000,-500.0,0.00012054,2]
[422024230,1778482249000,-500.0,0.00012054,2]
[422024269,1778482249000,-860.02,0.00012054,2]
[422024265,1778482249000,-500.0,0.00012054,2]
[422024207,1778482249000,-151.0,0.000118,2]
[422024267,1778482249000,-768.13,0.00012054,2]
[422024300,1778482249000,-405.57975163,0.00012328,2]
[422024306,1778482249000,-885.05,0.00012328,2]
[422024301,1778482249000,-500.0,0.00012328,2]
[422024299,1778482249000,-500.0,0.00012328,2]
[422024304,1778482249000,-500.0,0.00012328,2]
[422024303,1778482249000,-500.0,0.00012328,2]
[422024307,1778482249000,-500.0,0.00012328,2]
[422024302,1778482249000,-500.0,0.00012328,2]
[422024305,1778482249000,-500.0,0.00012328,2]
[422024312,1778482249000,-500.0,0.00012328,2]
[422024315,1778482249000,-500.0,0.00012328,2]
[422024314,1778482249000,-789.77,0.00012328,2]
[422024316,1778482249000,-500.0,0.00012328,2]
[422024313,1778482249000,-500.0,0.00012328,2]
[422024324,1778482249000,-929.93,0.00012328,2]
[422024323,1778482249000,-500.0,0.00012328,2]
[422024317,1778482249000,-500.0,0.00012328,2]
[422024319,1778482249000,-636.32,0.00012328,2]
[422024318,1778482249000,-801.74,0.00012328,2]
[422024322,1778482249000,-500.0,0.00012328,2]
[422024320,1778482249000,-500.0,0.00012328,2]
[422024321,1778482249000,-692.74,0.00012328,2]
[422024326,1778482249000,-500.0,0.00012328,2]
[422024325,1778482249000,-500.0,0.00012328,2]
[422024329,1778482249000,-860.02,0.00012328,2]
[422024328,1778482249000,-500.0,0.00012328,2]
[422024327,1778482249000,-768.13,0.00012328,2]
[422024330,1778482249000,-500.0,0.00012328,2]
[422024264,1778482249000,-929.93,0.00012054,2]
[422024297,1778482249000,-500.0,0.00012328,2]
[422024311,1778482249000,-837.3,0.00012328,2]
[422024217,1778482249000,-348.381,0.00012,2]
[422024310,1778482249000,-537.53,0.00012328,2]
[422024308,1778482249000,-587.07,0.00012328,2]
[422024268,1778482249000,-500.0,0.00012054,2]
[422024272,1778482249000,-564.63,0.00012054,2]
[422024271,1778482249000,-500.0,0.00012054,2]
[422024280,1778482249000,-151.0,0.000123,2]
[422024282,1778482249000,-152.0,0.0001232,30]
[422024281,1778482249000,-152.0,0.0001232,30]
[422024273,1778482249000,-268.0,0.00012055,3]
[422024277,1778482249000,-793.0,0.000121,2]
[422024278,1778482249000,-500.0,0.00012167,2]
[422024279,1778482249000,-151.0,0.000122,2]
[422024275,1778482249000,-704.08569727,0.00012065,2]
[422024276,1778482249000,-151.0,0.000121,2]
[422024283,1778482249000,-500.0,0.00012328,2]
[422024285,1778482249000,-500.0,0.00012328,2]
[422024274,1778482249000,-500.0,0.00012061,2]
[422024287,1778482249000,-500.0,0.00012328,2]
[422024286,1778482249000,-500.0,0.00012328,2]
[422024298,1778482249000,-500.0,0.00012328,2]
[422024296,1778482249000,-500.0,0.00012328,2]
[422024290,1778482249000,-500.0,0.00012328,2]
[422024289,1778482249000,-500.0,0.00012328,2]
[422024293,1778482249000,-500.0,0.00012328,2]
[422024309,1778482249000,-3856.79,0.00012328,2]
[422024291,1778482249000,-500.0,0.00012328,2]
[422024294,1778482249000,-1686.4916,0.00012328,2]
[422024288,1778482249000,-500.0,0.00012328,2]
[422024295,1778482249000,-373.02,0.00012328,2]
[422024284,1778482249000,-500.0,0.00012328,2]
[422024292,1778482249000,-500.0,0.00012328,2]
[422024359,1778482250000,-885.05,0.00012602,2]
[422024356,1778482250000,-500.0,0.00012602,2]
[422024358,1778482250000,-500.0,0.00012602,2]
[422024362,1778482250000,-3856.79,0.00012602,2]
[422024365,1778482250000,-500.0,0.00012602,2]
[422024360,1778482250000,-500.0,0.00012602,2]
[422024361,1778482250000,-587.07,0.00012602,2]
[422024366,1778482250000,-500.0,0.00012602,2]
[422024363,1778482250000,-537.53,0.00012602,2]
[422024364,1778482250000,-837.3,0.00012602,2]
[422024369,1778482250000,-500.0,0.00012602,2]
[422024370,1778482250000,-801.74,0.00012602,2]
[422024372,1778482250000,-500.0,0.00012602,2]
[422024380,1778482250000,-500.0,0.00012602,2]
[422024377,1778482250000,-500.0,0.00012602,2]
[422024373,1778482250000,-692.74,0.00012602,2]
[422024375,1778482250000,-500.0,0.00012602,2]
[422024376,1778482250000,-929.93,0.00012602,2]
[422024379,1778482250000,-768.13,0.00012602,2]
[422024374,1778482250000,-500.0,0.00012602,2]
[422024368,1778482250000,-500.0,0.00012602,2]
[422024371,1778482250000,-636.32,0.00012602,2]
[422024367,1778482250000,-789.77,0.00012602,2]
[422024338,1778482250000,-151.0,0.000125,2]
[422024355,1778482250000,-500.0,0.00012602,2]
[422024331,1778482250000,-500.0,0.00012328,2]
[422024341,1778482250000,-151.0,0.000126,2]
[422024342,1778482250000,-151.0,0.000126,2]
[422024334,1778482250000,-152.0,0.00012392,30]
[422024332,1778482250000,-564.63,0.00012328,2]
[422024333,1778482250000,-152.0,0.00012343,30]
[422024336,1778482250000,-386.20086826,0.00012406,2]
[422024335,1778482250000,-151.0,0.000124,2]
[422024337,1778482250000,-152.0,0.00012498,30]
[422024339,1778482250000,-152.0,0.00012546,2]
[422024340,1778482250000,-152.0,0.0001255,2]
[422024357,1778482250000,-500.0,0.00012602,2]
[422024378,1778482250000,-500.0,0.00012602,2]
[422024345,1778482250000,-500.0,0.00012602,2]
[422024346,1778482250000,-352.5,0.00012602,2]
[422024350,1778482250000,-1686.4916,0.00012602,2]
[422024352,1778482250000,-500.0,0.00012602,2]
[422024347,1778482250000,-500.0,0.00012602,2]
[422024351,1778482250000,-500.0,0.00012602,2]
[422024348,1778482250000,-500.0,0.00012602,2]
[422024349,1778482250000,-500.0,0.00012602,2]
[422024354,1778482250000,-500.0,0.00012602,2]
[422024344,1778482250000,-500.0,0.00012602,2]
[422024353,1778482250000,-500.0,0.00012602,2]
[422024343,1778482250000,-151.0,0.000126,2]
[422024383,1778482250000,-500.0,0.00012602,2]
[422024381,1778482250000,-860.02,0.00012602,2]
[422024393,1778482250000,-557.119349,0.0001274,2]
[422024411,1778482250000,-587.07,0.00012876,2]
[422024413,1778482250000,-537.53,0.00012876,2]
[422024414,1778482250000,-837.3,0.00012876,2]
[422024412,1778482250000,-3856.79,0.00012876,2]
[422024417,1778482250000,-789.77,0.00012876,2]
[422024415,1778482250000,-500.0,0.00012876,2]
[422024416,1778482250000,-500.0,0.00012876,2]
[422024418,1778482250000,-500.0,0.00012876,2]
[422024419,1778482250000,-500.0,0.00012876,2]
[422024423,1778482250000,-692.74,0.00012876,2]
[422024425,1778482250000,-500.0,0.00012876,2]
[422024432,1778482250000,-500.0,0.00012876,2]
[422024431,1778482250000,-860.02,0.00012876,2]
[422024426,1778482250000,-929.93,0.00012876,2]
[422024429,1778482250000,-768.13,0.00012876,2]
[422024422,1778482250000,-500.0,0.00012876,2]
[422024434,1778482250000,-2813.52644628,0.00012888,2]
[422024424,1778482250000,-500.0,0.00012876,2]
[422024430,1778482250000,-500.0,0.00012876,2]
[422024435,1778482250000,-1574.7991343,0.000129,2]
[422024428,1778482250000,-500.0,0.00012876,2]
[422024394,1778482250000,-1582.76556964,0.0001274,2]
[422024427,1778482250000,-500.0,0.00012876,2]
[422024409,1778482250000,-885.05,0.00012876,2]
[422024421,1778482250000,-636.32,0.00012876,2]
[422024433,1778482250000,-564.63,0.00012876,2]
[422024410,1778482250000,-500.0,0.00012876,2]
[422024420,1778482250000,-801.74,0.00012876,2]
[422024386,1778482250000,-5000.0,0.00012678,2]
[422024389,1778482250000,-350.720016,0.0001274,2]
[422024388,1778482250000,-160.0,0.0001274,2]
[422024384,1778482250000,-564.63,0.00012602,2]
[422024385,1778482250000,-8617.04061169,0.00012678,2]
[422024382,1778482250000,-500.0,0.00012602,2]
[422024390,1778482250000,-541.440032,0.0001274,2]
[422024387,1778482250000,-5000.0,0.00012678,2]
[422024392,1778482250000,-358.559674,0.0001274,2]
[422024396,1778482250000,-151.0,0.000128,2]
[422024395,1778482250000,-151.0,0.000128,2]
[422024391,1778482250000,-160.0,0.0001274,2]
[422024398,1778482250000,-160.0,0.00012804,2]
[422024405,1778482250000,-500.0,0.00012876,2]
[422024403,1778482250000,-500.0,0.00012876,2]
[422024401,1778482250000,-232.79556819,0.00012876,2]
[422024408,1778482250000,-500.0,0.00012876,2]
[422024397,1778482250000,-151.0,0.000128,2]
[422024400,1778482250000,-5853.525693,0.00012804,2]
[422024407,1778482250000,-500.0,0.00012876,2]
[422024399,1778482250000,-3006.762846,0.00012804,2]
[422024406,1778482250000,-500.0,0.00012876,2]
[422024402,1778482250000,-500.0,0.00012876,2]
[422024404,1778482250000,-500.0,0.00012876,2]
[422024441,1778482251000,-114.3381673,0.00010958,2]
[422024439,1778482251000,-4543.28249871,0.00010848,2]
[422024440,1778482251000,-500.0,0.00010958,2]
[422024438,1778482251000,-456.71750129,0.00010848,2]
[422024436,1778482251000,-1300.36031352,0.000129,2]
[422024437,1778482251000,-3593.2009488,0.000129,2]
[422024443,1778482397000,3000.0,0.00019178,120]
[422024444,1778482927000,-374.50491026,9.829e-05,2]
[422024445,1778482944000,-107.25271987,9.829e-05,2]
[422024448,1778482961000,-5000.0,9.928e-05,2]
[422024451,1778482978000,-160.0,0.00010514,2]
[422024452,1778482994000,-5000.0,0.00010409,2]
[422024528,1778483432000,-166.22948476,0.00010958,2]
[422024499,1778483432000,-313.01907662,7.562e-05,2]
[422024496,1778483432000,-5000.0,7.449e-05,2]
[422024501,1778483432000,-1449.31833637,7.6e-05,2]
[422024505,1778483432000,-2716.0,0.0001,2]
[422024507,1778483432000,-77.40786504,0.0001073,2]
[422024503,1778483432000,-369.36251041,9.562e-05,2]
[422024516,1778483432000,-82.59213496,0.0001073,2]
[422024519,1778483432000,-500.0,0.00010958,2]
[422024525,1778483432000,-500.0,0.00010958,2]
[422024520,1778483432000,-500.0,0.00010958,2]
[422024523,1778483432000,-500.0,0.00010958,2]
[422024527,1778483432000,-500.0,0.00010958,2]
[422024518,1778483432000,-537.6845,0.00010951,2]
[422024616,1778483440000,-5000.0,0.00010848,2]
[422024617,1778483441000,-97.7081018,0.00010958,2]
[422024619,1778483441000,-458.54574082,0.00010958,2]
[422024625,1778483441000,-500.0,0.00010958,2]
[422024623,1778483441000,-500.0,0.00010958,2]
[422024618,1778483441000,-356.35952642,0.00010958,2]
[422024620,1778483441000,-500.0,0.00010958,2]
[422024626,1778483441000,-463.08036818,0.00010958,2]
[422024622,1778483441000,-500.0,0.00010958,2]
[422024627,1778483441000,-36.91963182,0.00010958,2]
[422024629,1778483441000,-500.0,0.00010958,2]
[422024630,1778483441000,-470.1002904,0.00010958,2]
[422024621,1778483441000,-500.0,0.00010958,2]
[422024628,1778483441000,-500.0,0.00010958,2]
[422024649,1778483443000,-500.0,0.00010958,2]
[422024645,1778483443000,-29.8997096,0.00010958,2]
[422024647,1778483443000,-500.0,0.00010958,2]
[422024658,1778483443000,-500.0,0.00010958,2]
[422024657,1778483443000,-500.0,0.00010958,2]
[422024659,1778483443000,-500.0,0.00010958,2]
[422024651,1778483443000,-500.0,0.00010958,2]
[422024648,1778483443000,-500.0,0.00010958,2]
[422024652,1778483443000,-500.0,0.00010958,2]
[422024653,1778483443000,-324.9631337,0.00010958,2]
[422024646,1778483443000,-500.0,0.00010958,2]
[422024654,1778483443000,-500.0,0.00010958,2]
[422024650,1778483443000,-500.0,0.00010958,2]
[422024655,1778483443000,-500.0,0.00010958,2]
[422024675,1778483444000,-500.0,0.00010958,2]
[422024673,1778483444000,-500.0,0.00010958,2]
[422024684,1778483444000,-599.86,0.00010958,2]
[422024674,1778483444000,-200.12751779,0.00010958,2]
[422024668,1778483444000,-500.0,0.00010958,2]
[422024670,1778483444000,-572.90764758,0.00010958,2]
[422024669,1778483444000,-500.0,0.00010958,2]
[422024665,1778483444000,-565.3,0.00010958,2]
[422024666,1778483444000,-500.0,0.00010958,2]
[422024664,1778483444000,-430.39614287,0.00010958,2]
[422024662,1778483444000,-500.0,0.00010958,2]
[422024663,1778483444000,-590.04,0.00010958,2]
[422024672,1778483444000,-500.0,0.00010958,2]
[422024660,1778483444000,-500.0,0.00010958,2]
[422024671,1778483444000,-500.0,0.00010958,2]
[422024661,1778483444000,-500.0,0.00010958,2]
[422024678,1778483444000,-500.0,0.00010958,2]
[422024679,1778483444000,-500.0,0.00010958,2]
[422024667,1778483444000,-500.0,0.00010958,2]
[422024682,1778483444000,-1157.90346654,0.00010958,2]
[422024698,1778483444000,-454.76580848,0.00010958,2]
[422024683,1778483444000,-1413.29653346,0.00010958,2]
[422024694,1778483444000,-500.0,0.00010958,2]
[422024695,1778483444000,-305.8,0.00010958,2]
[422024692,1778483444000,-500.0,0.00010958,2]
[422024689,1778483444000,-500.0,0.00010958,2]
[422024693,1778483444000,-594.18,0.00010958,2]
[422024691,1778483444000,-500.0,0.00010958,2]
[422024688,1778483444000,-500.0,0.00010958,2]
[422024690,1778483444000,-349.22,0.00010958,2]
[422024685,1778483444000,-500.0,0.00010958,2]
[422024687,1778483444000,-568.18,0.00010958,2]
[422024696,1778483444000,-346.31525101,0.00010958,2]
[422024697,1778483444000,-153.68474899,0.00010958,2]
[422024680,1778483444000,-500.0,0.00010958,2]
[422024686,1778483444000,-500.0,0.00010958,2]
[422024676,1778483444000,-500.0,0.00010958,2]
[422024681,1778483444000,-502.40436824,0.00010958,2]
[422024677,1778483444000,-248.01423237,0.00010958,2]
[422024749,1778483447000,-500.0,0.00010958,2]
[422024759,1778483447000,-160.0,0.0001116,2]
[422024754,1778483447000,-500.0,0.00010958,2]
[422024758,1778483447000,-161.621689,0.0001116,2]
[422024752,1778483447000,-573.35,0.00010958,2]
[422024756,1778483447000,-500.0,0.00010958,2]
[422024757,1778483447000,-500.0,0.00010958,2]
[422024760,1778483447000,-160.0,0.0001116,2]
[422024755,1778483447000,-500.0,0.00010958,2]
[422024753,1778483447000,-553.76,0.00010958,2]
[422024751,1778483447000,-661.62,0.00010958,2]
[422024741,1778483447000,-500.0,0.00010958,2]
[422024744,1778483447000,-500.0,0.00010958,2]
[422024742,1778483447000,-507.88,0.00010958,2]
[422024745,1778483447000,-465.46,0.00010958,2]
[422024746,1778483447000,-500.0,0.00010958,2]
[422024740,1778483447000,-500.0,0.00010958,2]
[422024743,1778483447000,-564.43,0.00010958,2]
[422024739,1778483447000,-500.0,0.00010958,2]
[422024737,1778483447000,-45.23419152,0.00010958,2]
[422024738,1778483447000,-503.74849012,0.00010958,2]
[422024762,1778483447000,-383.85303764,0.00011232,2]
[422024750,1778483447000,-472.41,0.00010958,2]
[422024764,1778483447000,-500.0,0.00011232,2]
[422024747,1778483447000,-500.0,0.00010958,2]
[422024761,1778483447000,-600.0,0.00011176,2]
[422024770,1778483447000,-355.8,0.00011232,2]
[422024787,1778483447000,-366.7429796,0.00011232,2]
[422024786,1778483447000,-500.0,0.00011232,2]
[422024782,1778483447000,-257.54,0.00011232,2]
[422024781,1778483447000,-500.0,0.00011232,2]
[422024780,1778483447000,-529.18,0.00011232,2]
[422024774,1778483447000,-38.95709551,0.00011232,2]
[422024779,1778483447000,-500.0,0.00011232,2]
[422024785,1778483447000,-599.86,0.00011232,2]
[422024783,1778483447000,-500.0,0.00011232,2]
[422024784,1778483447000,-2571.2,0.00011232,2]
[422024776,1778483447000,-590.04,0.00011232,2]
[422024748,1778483447000,-500.0,0.00010958,2]
[422024777,1778483447000,-245.9,0.00011232,2]
[422024763,1778483447000,-500.0,0.00011232,2]
[422024772,1778483447000,-500.0,0.00011232,2]
[422024771,1778483447000,-500.0,0.00011232,2]